Cogmind - Beta 14 @@@ ROGUE MODE // 2024.09.09 @ 00:40:41 Player: Awoo-Bot Result: Destroyed by QI-N84(R) with Subdweller Machine Gun Performance ------------- Evolutions (0) 0 Regions Visited (2) 400 Robots Destroyed (34) 170 Value Destroyed (747) 747 Prototype IDs (0) 0 Alien Tech Used (0) 0 Bonus (0) 0 TOTAL SCORE: 1317 Bonus ------- None Cogmind --------- Core Integrity 0/250 Matter 277/300 Energy 232/250 System Corruption 0% Temperature Cool (0) Movement Rolling (125) Ox3 Location -10/Subcaves Parts ------- > --- POWER (1) -------- Ion Engine > --- PROPULSION (2) --- Light Treads Wheel > --- UTILITY (2) ------ Large Storage Unit > --- WEAPON (2) ------- Spread Laser Light Cannon > --- INVENTORY (15) --- Large Storage Unit High-capacity Matter Pod (161) Improved Terrain Scanner Makeshift ECM Suite Assault Rifle Light Assault Rifle Subdweller Machine Gun Light Cannon Battle Cannon Hammer Ripper Shrapnel Trap Peak State ------------ > --- POWER ------------ Ion Engine > --- PROPULSION ------- Light Treads Wheel > --- UTILITY ---------- Large Storage Unit Seismic Detector > --- WEAPON ----------- Spread Laser Light Cannon > --- INVENTORY -------- Large Storage Unit High-capacity Matter Pod Improved Terrain Scanner Makeshift ECM Suite Assault Rifle Light Assault Rifle Subdweller Machine Gun Light Cannon Battle Cannon Hammer Ripper Shrapnel Trap [Rating: 10] Favorites ----------- Power Ion Engine Engine Ion Engine Propulsion Compact Wheel Treads Light Treads Wheel Compact Wheel Utility Seismic Detector Device Seismic Detector Storage Large Storage Unit Weapon Assault Rifle Energy Gun Particle Gun Ballistic Gun Assault Rifle Ballistic Cannon Light Cannon Launcher Grenade Launcher Impact Weapon Hammer Build | -11 -10 -10 ------- Run | Yrd Mat Sub Slots Evolved . | . . . Power . | . . . Propulsion . | . . . Utility . | . . . Weapon . | . . . Parts Attached 44 | 9 18 17 Power 4 | 1 1 2 Engine 4 | 1 1 2 Core . | . . . Reactor . | . . . Propulsion 6 | 2 1 3 Treads 3 | 1 1 1 Leg . | . . . Wheel 3 | 1 . 2 Hover . | . . . Flight . | . . . Utility 3 | 2 1 . Device 1 | 1 . . Storage 2 | 1 1 . Processor . | . . . Hackware . | . . . Protection . | . . . Artifact . | . . . Weapon 31 | 4 15 12 Energy Gun 4 | 2 . 2 Energy Cannon . | . . . Ballistic Gun 13 | 2 7 4 Ballistic Cannon 1 | . . 1 Launcher 7 | . 3 4 Special Weapon . | . . . Impact Weapon 6 | . 5 1 Slashing Weapon . | . . . Piercing Weapon . | . . . Special Melee Weapon . | . . . Unidentified Prototypes . | . . . Parts Lost 8 | . . 8 Power 1 | . . 1 Propulsion 3 | . . 3 Utility 1 | . . 1 Weapon 3 | . . 3 Highest Loss Streak 4 | . . 4 To Critical Strikes . | . . . Average Slot Usage (%) 96 | . 100 93 Engine 12 | . 14 10 Treads 12 | . 14 10 Wheel 13 | . 14 13 Device 13 | . 14 13 Storage 14 | . 14 14 Energy Gun 2 | . . 5 Ballistic Gun 18 | . 26 11 Ballistic Cannon 2 | . . 5 Launcher 1 | . . 2 Impact Weapon 2 | . 1 3 Peak Build Rating 10 | 7 8 10 Average Rating 7 | 5 7 8 On Entrance 5 | . 7 8 Naked Turns . | . . . Heaviest Build 32 | 15 31 32 Greatest Support 20 | 20 20 20 Greatest Overweight (x) 3 | 2 1 3 Average Overweight (x) 1 | . . 1 Largest Inventory Capacity 15 | 8 15 15 Average Capacity 13 | 7 13 15 Most Carried 14 | 5 14 14 Average Carried 11 | 3 10 12 Final Capacity 15 | 8 15 15 Final Carried 14 | 5 14 12 Class Distribution -------------------- 100% | Mutant Dominant Class ---------------- Mutant | -10/Materials Mutant | -10/Subcaves Resources | -11 -10 -10 ----------- Run | Yrd Mat Sub Matter Collected 1186 | 290 294 602 Remotely . | . . . Salvage Created 774 | 137 471 166 Parts 51 | 7 26 18 Haulers Intercepted . | . . . Recyclers Shooed 1 | . 1 . Parts Field Recycled . | . . . Retrieved Matter . | . . . Parts Self-Destructed 16 | . . 16 Prevented . | . . . Kills | -11 -10 -10 ------- Run | Yrd Mat Sub Combat Hostiles Destroyed 27 | . 16 11 Melee 3 | . 3 . Guns 1 | . . 1 Cannons 1 | . . 1 AOE 20 | . 11 9 Classes Destroyed 7 | 2 3 2 Worker 3 | . 3 . Tunneler 2 | 2 . . Recycler 2 | 1 1 . Swarmer 11 | . 6 5 Grunt 10 | . 10 . Sentry 1 | . . 1 Subdweller 5 | . . 5 Best Kill Streak 10 | 3 10 3 Combat Bots Only 8 | . 8 3 Max Kills in Single Turn 2 | 1 2 2 Gunslinging . | . . . Exploded 2 | . 2 2 Melee 1 | . 1 . Uniques/NPCs Destroyed . | . . . Combat | -11 -10 -10 -------- Run | Yrd Mat Sub Hostile Shots Fired 106 | . 42 64 Missed 32 | . 17 15 Damage Taken 1183 | . 308 875 Core 263 | . 45 218 Absorbed by Shields . | . . . Core Remaining (%) 100 | 100 . . Volleys Fired 64 | 7 21 36 Largest 2 | 2 2 2 Hottest 100 | 40 40 100 Shots Fired 97 | 14 30 53 Gun 51 | 14 18 19 Cannon 20 | . . 20 Launcher 26 | . 12 14 Special . | . . . Kinetic 56 | 14 18 24 Thermal 15 | . . 15 Explosive 26 | . 12 14 Electromagnetic . | . . . Robot Hit Streak 10 | 5 3 10 Robot Miss Streak 11 | 2 10 11 Penetration Max . | . . . Secondary Targets . | . . . Shots Hit Robots 56 | 7 15 34 Core Hits 50 | 4 22 24 Critical Kills . | . . . Critical Parts Destroyed 3 | . 3 . Critical Strikes 4 | . 3 1 Burn 1 | . . 1 Smash 3 | . 3 . Melee Attacks 22 | . 15 7 Impact 22 | . 15 7 Slashing . | . . . Piercing . | . . . Sneak Attacks 2 | . 2 . Combat Hostiles . | . . . Follow-up Attacks . | . . . Damage Inflicted 2193 | 111 1100 982 Guns 333 | 111 59 163 Cannons 197 | . . 197 Explosions 1373 | . 751 622 Melee 290 | . 290 . Ramming . | . . . Kinetic 392 | 111 59 222 Thermal 154 | . 16 138 Explosive 1330 | . 708 622 Electromagnetic 27 | . 27 . Impact 290 | . 290 . Slashing . | . . . Piercing . | . . . Highest Corruption . | . . . Average Corruption . | . . . Corruption Purged . | . . . Corruption Blocked . | . . . Overload Shots . | . . . Overflow Damage 165 | . 154 11 Projectiles . | . . . Explosions 57 | . 46 11 Melee 108 | . 108 . Knockbacks 3 | . 1 2 Impact 1 | . 1 . Kinetic 2 | . . 2 Secondary . | . . . Self-Inflicted Damage 65 | . 39 26 Shots 4 | . 2 2 Rammed . | . . . Targets Rammed . | . . . Kicked . | . . . Crushed . | . . . Highest Temperature 6 | . 6 2 Average Temperature 2 | . 3 2 Received Heat Transfer 273 | . 78 195 Siege Activations . | . . . Robots Corrupted 3 | . 3 . Combat Hostiles 2 | . 2 . Parts Fried 7 | . 7 . Impact Corruptions 5 | . 5 . Robots Melted . | . . . Combat Hostiles . | . . . Parts Melted 1 | . 1 . Heat Transferred 384 | . 50 334 Parts Sabotaged . | . . . Parts Stolen . | . . . Parts Stripped . | . . . Power Chain Reactions 1 | . 1 . Alert | -11 -10 -10 ------- Run | Yrd Mat Sub Peak Influence 350 | 15 350 . Initial 9 | . 9 . Average 104 | 4 112 . Maximum Alert Level 1 | . 1 . Low Security (%) 78 | 100 76 . Level 1 21 | . 23 . Level 2 . | . . . Level 3 . | . . . Level 4 . | . . . Level 5 . | . . . High Security . | . . . Max Security . | . . . Squads Dispatched 2 | . 2 . Investigation 1 | . 1 . Extermination . | . . . Reinforcement 1 | . 1 . Assault . | . . . Garrison . | . . . Intercept . | . . . Searches Triggered . | . . . Construction Impeded . | . . . Haulers Reinforced . | . . . Active Scanning Responses . | . . . Cargo Convoy Interrupts . | . . . Stealth | -11 -10 -10 --------- Run | Yrd Mat Sub Distress Signals . | . . . Communications Jammed . | . . . Distress Signals . | . . . Times Spotted 39 | . 23 16 Peak Tracking Total 7 | . 7 5 Tactical Retreats 1 | . . 1 Traps | -11 -10 -10 ------- Run | Yrd Mat Sub Traps Triggered 8 | . 7 1 Indirectly 4 | . 4 . Trap Hack Attempts . | . . . Triggered . | . . . Disarmed . | . . . Reprogrammed . | . . . Reused . | . . . Traps Extracted . | . . . Installed . | . . . Triggered . | . . . Most Traps Carried 1 | . . 1 Machines | -11 -10 -10 ---------- Run | Yrd Mat Sub Machines Disabled 1 | . 1 . Max in Single Turn 1 | . 1 . Machines Repaired . | . . . Machines Dismantled . | . . . Machines Sabotaged . | . . . Overloaded Fab Kills . | . . . Hacking | -11 -10 -10 --------- Run | Yrd Mat Sub Machines Accessed 7 | . 7 . Terminals 7 | . 7 . Fabricators . | . . . Repair Stations . | . . . Recycling Units . | . . . Scanalyzers . | . . . Garrison Access . | . . . Total Hacks 20 | . 20 . Successful 13 | . 13 . Failed 7 | . 7 . Catastrophic . | . . . Database Lockouts . | . . . Manual 20 | . 20 . Terminals 20 | . 20 . Fabricators . | . . . Repair Stations . | . . . Recycling Units . | . . . Scanalyzers . | . . . Garrison Access . | . . . Terminal Hacks 1 | . 1 . Unreport Threat 1 | . 1 . Fabricator Hacks . | . . . Repair Station Hacks . | . . . Recycling Unit Hacks . | . . . Scanalyzer . | . . . Garrison Access Hacks . | . . . Unauthorized Hacks 12 | . 12 . Terminals 12 | . 12 . Botnet 7 | . 7 . Skim 5 | . 5 . Fabricators . | . . . Repair Stations . | . . . Recycling Units . | . . . Scanalyzers . | . . . Garrison Access . | . . . Data Cores Recovered . | . . . Used . | . . . Hacking Detections 6 | . 6 . Full Trace Events . | . . . Feedback Events . | . . . Feedback Blocked . | . . . Robot Schematics Acquired . | . . . Robots Built . | . . . Authchips . | . . . Time . | . . . Total Robot Build Rating . | . . . Part Schematics Acquired . | . . . Parts Built . | . . . Authchips . | . . . Time . | . . . Total Part Build Rating . | . . . Parts Repaired . | . . . Time . | . . . Parts Recycled . | . . . Recycled Matter . | . . . Retrieved Matter . | . . . Retrieved Components . | . . . Parts Scanalyzed . | . . . Part Schematics Acquired . | . . . Parts Damaged . | . . . Bothacking | -11 -10 -10 ------------ Run | Yrd Mat Sub Used RIF Installer . | . . . Robots Hacked . | . . . Non-combat . | . . . Combat . | . . . Robot Hacks Applied . | . . . Relay Couplers Released . | . . . Fabnet Peak Effective % . | . . . Robots Rewired . | . . . Allies Hacked . | . . . Hacks Repelled . | . . . Allies | -11 -10 -10 -------- Run | Yrd Mat Sub Total Allies . | . . . Largest Group . | . . . Highest-Rated Group . | . . . Highest-Rated Ally . | . . . Total Orders . | . . . Ally Attacks . | . . . Total Damage . | . . . Kills . | . . . Allies Corrupted . | . . . Allies Melted . | . . . Intel | -11 -10 -10 ------- Run | Yrd Mat Sub Robot Analysis Total . | . . . Derelict Logs Recovered 1 | . . 1 Drone Launches . | . . . Drone Recoveries . | . . . Exploration | -11 -10 -10 ------------- Run | Yrd Mat Sub Turns Passed 2245 | 85 1049 1111 Spaces Moved 1516 | 47 655 814 Core 8 | 8 . . Treads 123 | 2 99 22 Legs . | . . . Wheels 1385 | 37 556 792 Hover . | . . . Flight . | . . . Fastest Speed 50 | 50 100 110 Average Speed 123 | 98 129 119 Slowest Speed 240 | 160 240 240 Overloaded Moves . | . . . Propulsion Burnouts . | . . . Robots Hopped . | . . . Cave-ins Triggered . | . . . Exploration Rate (%) 52 | 3 99 56 Regions Visited 2 Branch Regions 1 Pre-discovered Areas 2 | . 2 . Known Exits Taken 1 | . 1 . Unknown Exits Taken 1 | 1 . . Scrap Searched 5 | . . 5 Spaces Dug 16 | . 12 4 Terrain Destroyed 128 | . 63 65 Melee 3 | . 3 . Projectile . | . . . AOE 125 | . 60 65 Terrain Rammed . | . . . Walls Destroyed . | . . . Machines Disabled . | . . . Actions | -11 -10 -10 --------- Run | Yrd Mat Sub Total 1743 | 68 794 881 Wait 72 | . 71 1 Move 1514 | 46 654 814 Hop . | . . . Pick Up 21 | 5 11 5 Fast Attach 9 | 7 1 1 Attach 7 | 1 . 6 Detach 1 | 1 . . Swap 28 | 1 17 10 Drop 5 | . 4 1 Fire 64 | 7 21 36 Melee 22 | . 15 7 Ram . | . . . Kick . | . . . Crush . | . . . Escape Stasis . | . . . Rewire . | . . . Trap . | . . . Miscellaneous . | . . . Route ------- -11/Scrapyard -10/Materials (discovered 6 exits: *Mat x3 / [*Min x2] / *Sub) -10/Subcaves History --------- Turn | Location | Event 17 | -11/Scrapyard | Discovered new exit (range 16) 86 | -11/Scrapyard | Entered Materials 136 | -10/Materials | Discovered new exit (range 10) 300 | -10/Materials | Discovered new exit (range 8) 338 | -10/Materials | Build established: Mutant 472 | -10/Materials | Discovered new exit (range 10) 607 | -10/Materials | Discovered new exit (range 13) 641 | -10/Materials | Learned location of 2 exits from Mines 671 | -10/Materials | Destroyed 8 combat bots 676 | -10/Materials | Learned location of 1 exit from Recycling 721 | -10/Materials | Learned location of Storage (-8) 729 | -10/Materials | Learned location of 1 exit from Recycling 730 | -10/Materials | Identified exit to Subcaves 730 | -10/Materials | Identified exit to Materials 738 | -10/Materials | Learned 4 Recycling zone layouts 754 | -10/Materials | Loaded intel: 11 interactive machine locations 1135 | -10/Materials | Entered Subcaves 1424 | -10/Subcaves | Ambushed by Subdweller buried in earth 1640 | -10/Subcaves | A swath of the cavern ceiling suddenly collapsed 1681 | -10/Subcaves | Shifting Twisted Machinery released Flamer 1702 | -10/Subcaves | A swath of the cavern ceiling suddenly collapsed 1761 | -10/Subcaves | Shifting Twisted Machinery released Sub. Shrapnel Launcher 1801 | -10/Subcaves | Core integrity fell below 50% 1838 | -10/Subcaves | Lost 4 parts (1p1n2w) 2026 | -10/Subcaves | Disturbed a concealed Subdweller 2227 | -10/Subcaves | Core integrity fell below 20% 2246 | -10/Subcaves | Destroyed by QI-N84(R) with Subdweller Machine Gun Last Messages --------------- 02067_ Found Sub. Optics. 02067_ Found 39 Matter. 02068_ Acquired 39 matter. 02072_ Searching scrap... 02072_ Found Flamer. 02072_ Found Battle Cannon. 02072_ Found 49 Matter. 02073_ Acquired 49 matter. 02077_ Acquired Battle Cannon. 02079_ Searching scrap... 02079_ Found Sub. Machine Gun. 02079_ Found Sub. Beam Cannon. 02079_ Found 33 Matter. 02080_ Acquired 33 matter. 02081_ Acquired Sub. Machine Gun. 02085_ Acquired Shrapnel Trap. 02173_ Acquired Ripper. 02217_ Acquired 5 matter. 02222_ Acquired 8 matter. 02232_ Seismic Detector destroyed. Map ----- +----------------------------------------------------+ | ?????????????????????????????????????????????????? | | ?????????????????????????????????????????????????? | | ?????????????????????????????????????????????????? | | ?????????????????????????????????????????????????? | | ?????????????????????????????????????????????????? | | ?????????????????????????????????????????????????? | | ?????????????????????????????????????????????????? | | ?????????????????????????????????????????????????? | | ?????????????????????????????????????????????????? | | ?????????????????????????????????????????????????? | | ?????????????????????????????????????????????????? | | ?????????????????????????????????????????????????? | | ?????????????????????????????????????????????????? | | ?????????????????????????????????????????????????? | | ?????????????????????????????????????????????????? | | ?????????????????????##??####????????????????????? | | ?????????????????????? ### #????????????????????? | | ????????????????????### #????????????????????? | | ????????????????????# ##???????????????????? | | ?????????????????????# #???????????????????? | | ?????????????????????? # #???????????????????? | | ???????????????????????# #???????????????????? | | ??????????????????????### #???????????????????? | | ?????????????????????## % ##??????????????????? | | ?????????????????????# #??????????????????? | | ????????????????????### @ %######?????????????? | | ???????????????????##"#R ##????????????? | | ???????????????????# # # ????????? | | ?????????????????#" ##< #??????? | | ?????????????????###??### ??????? | | ??????????? ########???# #??????? | | ??????????# #### ##### ????????? | | ?????????????? %%## % ###?????????????? | | ????????????????????# #####%#???????????????? | | ????????????????????## #????##???????????????? | | ?????????????????????# #?????????????????????? | | ????????????????###### #?????????????????????? | | ??????????????### #?????????????????????? | | ??????????????# ##?????????????????????? | | ??????????????# ##??????????????????????? | | ??????????????# #??????????????????????#? | | ??????????????# ## #?????????????????????## | | ??????????????#### ######????????????????????## | | ????????????????## #?????????????????????????# | | ???????????????## #?????????????????????????# % | | ???????????????# #?????????????????????????## | | ??????????????## ##???????????????????????## | | ??????????????# #???????????????????????# | | ??????????????# ##??????????????????????# & | | ??????????????# #???????????????????? # | +----------------------------------------------------+ Best States ------------- Heat Dissipation 25 Energy Generation 10 Energy Capacity 250 Matter Stores 300 Matter Capacity 300 Sight Range 16 Terrain Scan Density 10 Evasion (%) 40 Recoil Reduction 1 Item Schematics ----------------- None Robot Schematics ------------------ None Fabricated ------------ Nothing Alien Tech Used ----------------- None Achievements -------------- None Challenges ------------ None Game ------ Seed WeldingSurgeScrapsphere Manual? 0 Play Time 00:20:21 Cumulative 69.1 hours Start 2024.09.09 @ 00:21:33 End 2024.09.09 @ 00:40:41 Sessions 1 Manual Loads 0 Difficulty Rogue Special Mode None Game No. 112 Rogue 84 Adventurer 28 Explorer 0 Win Type - Total 0 Types 0/0/0/0/0/0/0/0/0 Lore% 14 Gallery% 28 Achievement% 31 Wizard Run 0 Options --------- Layout 0 ASCII 0 Keyboard 0 Movement Mouse Keybinds 0 Fullscreen 1 Font 28/SmallcapsGlow Map View 84x54 Zoom Use 0% Tactical HUD 1 Map Filters NONE Filters NONE Steam 1 RUN: f104815a-f5a5-4f16-b854-fdabe1366f80